[Event "Early-Titled-Tuesday-Blitz-March-12-2024"]
[Site "Chess.com"]
[Date "2024.03.12"]
[Round "11"]
[White "vovachesss"]
[Black "Dyadya81"]
[Result "1/2-1/2"]
[WhiteElo "2807"]
[BlackElo "2925"]
[TimeControl "180+1"]
[EndTime "10:02:58 PDT"]
[Termination "Game drawn by repetition"]

1. e4 {[%clk 0:03:00.9]} 1... c6 {[%clk 0:02:57.1]} 2. d4 {[%clk 0:03:00]} 2...
d5 {[%clk 0:02:56.5]} 3. Nc3 {[%clk 0:03:00.6]} 3... dxe4 {[%clk 0:02:57]} 4.
Nge2 {[%clk 0:03:01.3]} 4... Nf6 {[%clk 0:02:53.8]} 5. Ng3 {[%clk 0:03:01.7]}
5... Nbd7 {[%clk 0:02:50.8]} 6. Bc4 {[%clk 0:02:54.6]} 6... e6 {[%clk
0:02:36.4]} 7. O-O {[%clk 0:02:54.1]} 7... Be7 {[%clk 0:02:34.5]} 8. Qe2 {[%clk
0:02:43.3]} 8... b6 {[%clk 0:02:32.2]} 9. Ncxe4 {[%clk 0:02:40.8]} 9... Bb7
{[%clk 0:02:30.1]} 10. Ng5 {[%clk 0:02:03.8]} 10... Nd5 {[%clk 0:02:29.4]} 11.
Qh5 {[%clk 0:01:34.5]} 11... Bxg5 {[%clk 0:02:22]} 12. Bxg5 {[%clk 0:01:34.2]}
12... N7f6 {[%clk 0:02:22.5]} 13. Qh4 {[%clk 0:01:30.6]} 13... h6 {[%clk
0:02:22.6]} 14. Nh5 {[%clk 0:00:19.6]} 14... hxg5 {[%clk 0:02:21]} 15. Nxf6+
{[%clk 0:00:19.4]} 15... Qxf6 {[%clk 0:02:21.6]} 16. Qxh8+ {[%clk 0:00:19]}
16... Ke7 {[%clk 0:02:21.2]} 17. Qh3 {[%clk 0:00:15.3]} 17... Qxd4 {[%clk
0:02:20.4]} 18. Bxd5 {[%clk 0:00:15]} 18... cxd5 {[%clk 0:02:19.7]} 19. Qg3
{[%clk 0:00:15.9]} 19... Kf6 {[%clk 0:02:11.9]} 20. Rad1 {[%clk 0:00:14.4]}
20... Qf4 {[%clk 0:02:12]} 21. Qc3+ {[%clk 0:00:14.6]} 21... Kg6 {[%clk
0:02:10.7]} 22. Rd4 {[%clk 0:00:14.7]} 22... Qf5 {[%clk 0:02:03.8]} 23. Qc7
{[%clk 0:00:13.1]} 23... Ba6 {[%clk 0:02:01.6]} 24. Re1 {[%clk 0:00:13.1]} 24...
Rc8 {[%clk 0:02:01.1]} 25. Qxa7 {[%clk 0:00:13]} 25... Rxc2 {[%clk 0:02:01.7]}
26. f3 {[%clk 0:00:07.5]} 26... Bb5 {[%clk 0:01:45.9]} 27. Qxb6 {[%clk
0:00:07.6]} 27... Rxb2 {[%clk 0:01:46.5]} 28. Rg4 {[%clk 0:00:04.3]} 28... Qc2
{[%clk 0:01:36.1]} 29. Qe3 {[%clk 0:00:04.9]} 29... f6 {[%clk 0:01:36.7]} 30. a4
{[%clk 0:00:04.9]} 30... Bc4 {[%clk 0:01:34.1]} 31. Qxe6 {[%clk 0:00:05]} 31...
Qf2+ {[%clk 0:01:33.3]} 32. Kh1 {[%clk 0:00:03.9]} 32... Re2 {[%clk 0:01:33.5]}
33. Rxg5+ {[%clk 0:00:01.5]} 33... Kxg5 {[%clk 0:01:33.6]} 34. Qg4+ {[%clk
0:00:02]} 34... Kh6 {[%clk 0:01:34.2]} 35. Qh3+ {[%clk 0:00:02.4]} 35... Kg6
{[%clk 0:01:32.3]} 36. Qg4+ {[%clk 0:00:02.9]} 36... Kh7 {[%clk 0:01:31.5]} 37.
Qh3+ {[%clk 0:00:02.7]} 37... Kg8 {[%clk 0:01:30.5]} 38. Qc8+ {[%clk 0:00:03.3]}
38... Kf7 {[%clk 0:01:31.1]} 39. Qd7+ {[%clk 0:00:03.9]} 39... Kg6 {[%clk
0:01:22.4]} 40. Qg4+ {[%clk 0:00:03.5]} 40... Kf7 {[%clk 0:01:11.6]} 41. Qd7+
{[%clk 0:00:03.7]} 41... Kg8 {[%clk 0:01:12.5]} 42. Qc8+ {[%clk 0:00:03.7]}
42... Kh7 {[%clk 0:01:10.3]} 43. Qh3+ {[%clk 0:00:04.3]} 43... Kg6 {[%clk
0:01:09.7]} 44. Qg4+ {[%clk 0:00:04.8]} 1/2-1/2

[Event "Early-Titled-Tuesday-Blitz-March-12-2024"]
[Site "Chess.com"]
[Date "2024.03.12"]
[Round "11"]
[White "Seochesspie"]
[Black "Abund"]
[Result "0-1"]
[WhiteElo "2859"]
[BlackElo "2807"]
[TimeControl "180+1"]
[EndTime "10:02:59 PDT"]
[Termination "Abund won by resignation"]

1. c4 {[%clk 0:03:00.9]} 1... e6 {[%clk 0:02:59.9]} 2. g3 {[%clk 0:02:58.7]}
2... d5 {[%clk 0:03:00]} 3. Bg2 {[%clk 0:02:59.3]} 3... Nf6 {[%clk 0:03:00.6]}
4. Nf3 {[%clk 0:02:59.5]} 4... dxc4 {[%clk 0:03:00.8]} 5. Qa4+ {[%clk
0:02:57.2]} 5... Bd7 {[%clk 0:02:59.8]} 6. Qxc4 {[%clk 0:02:57.6]} 6... c5
{[%clk 0:03:00.6]} 7. Ne5 {[%clk 0:02:57.9]} 7... Qc8 {[%clk 0:03:00.8]} 8. Qd3
{[%clk 0:02:58.5]} 8... Nc6 {[%clk 0:03:01]} 9. Nxd7 {[%clk 0:02:58.6]} 9...
Nxd7 {[%clk 0:03:01.4]} 10. O-O {[%clk 0:02:58.5]} 10... Be7 {[%clk 0:03:01.9]}
11. Nc3 {[%clk 0:02:58.2]} 11... O-O {[%clk 0:03:01.3]} 12. b3 {[%clk
0:02:56.6]} 12... Nf6 {[%clk 0:02:59.9]} 13. Bb2 {[%clk 0:02:56.2]} 13... Rd8
{[%clk 0:02:58.5]} 14. Qc2 {[%clk 0:02:56.4]} 14... Qd7 {[%clk 0:02:57.9]} 15.
Rad1 {[%clk 0:02:56]} 15... Rac8 {[%clk 0:02:58]} 16. Ne4 {[%clk 0:02:48.6]}
16... Nd4 {[%clk 0:02:49.3]} 17. Qd3 {[%clk 0:02:33.2]} 17... Nd5 {[%clk
0:02:20.8]} 18. e3 {[%clk 0:02:25.7]} 18... Nb4 {[%clk 0:02:14.8]} 19. Qb1
{[%clk 0:02:25.8]} 19... Nf5 {[%clk 0:02:00.6]} 20. a3 {[%clk 0:02:13.5]} 20...
Nd3 {[%clk 0:02:00.7]} 21. Ba1 {[%clk 0:02:13.6]} 21... b5 {[%clk 0:01:57.1]}
22. Nc3 {[%clk 0:02:06.1]} 22... c4 {[%clk 0:01:53.1]} 23. bxc4 {[%clk
0:01:54.9]} 23... bxc4 {[%clk 0:01:53.5]} 24. a4 {[%clk 0:01:55.2]} 24... Rb8
{[%clk 0:01:53.2]} 25. Qc2 {[%clk 0:01:52.4]} 25... h6 {[%clk 0:01:45.7]} 26.
Nb5 {[%clk 0:01:47.7]} 26... a6 {[%clk 0:01:41.4]} 27. Nd4 {[%clk 0:01:47.2]}
27... Nxd4 {[%clk 0:01:35.6]} 28. Bxd4 {[%clk 0:01:48.1]} 28... Rb4 {[%clk
0:01:35.4]} 29. a5 {[%clk 0:01:44]} 29... Bc5 {[%clk 0:01:26.2]} 30. Bc3 {[%clk
0:01:28.1]} 30... Rb5 {[%clk 0:01:26.1]} 31. Ra1 {[%clk 0:01:23.8]} 31... Bb4
{[%clk 0:01:21.5]} 32. Ra4 {[%clk 0:01:16.4]} 32... Bxc3 {[%clk 0:01:19.9]} 33.
Qxc3 {[%clk 0:01:17.3]} 33... Nb2 {[%clk 0:01:09.1]} 34. Rb4 {[%clk 0:00:55.9]}
34... Rxb4 {[%clk 0:00:49.6]} 35. Qxb4 {[%clk 0:00:55.8]} 35... Qxd2 {[%clk
0:00:50.2]} 36. Qb6 {[%clk 0:00:23.3]} 36... c3 {[%clk 0:00:50.4]} 37. Qxa6
{[%clk 0:00:23]} 37... c2 {[%clk 0:00:49.9]} 38. Qc6 {[%clk 0:00:21]} 38... Nd1
{[%clk 0:00:49.8]} 0-1

[Event "Early-Titled-Tuesday-Blitz-March-12-2024"]
[Site "Chess.com"]
[Date "2024.03.12"]
[Round "11"]
[White "Korchmar_Vasiliy"]
[Black "crazyluzhinTh3"]
[Result "1-0"]
[WhiteElo "2709"]
[BlackElo "2573"]
[TimeControl "180+1"]
[EndTime "10:02:59 PDT"]
[Termination "Korchmar_Vasiliy won on time"]

1. h4 {[%clk 0:03:00.9]} 1... d5 {[%clk 0:02:59.8]} 2. h5 {[%clk 0:03:01]} 2...
h6 {[%clk 0:02:59.9]} 3. a4 {[%clk 0:03:01.4]} 3... Nf6 {[%clk 0:02:59.7]} 4. a5
{[%clk 0:03:01.5]} 4... Bf5 {[%clk 0:02:59.4]} 5. g3 {[%clk 0:03:00.4]} 5... e6
{[%clk 0:02:59.6]} 6. Bg2 {[%clk 0:02:59.9]} 6... a6 {[%clk 0:02:57.5]} 7. b3
{[%clk 0:02:59]} 7... c5 {[%clk 0:02:55.9]} 8. Bb2 {[%clk 0:02:58.9]} 8... Nc6
{[%clk 0:02:56.1]} 9. Nf3 {[%clk 0:02:58.6]} 9... Be7 {[%clk 0:02:52]} 10. d3
{[%clk 0:02:58.9]} 10... Bd6 {[%clk 0:02:52.1]} 11. Nbd2 {[%clk 0:02:59.1]}
11... Nxa5 {[%clk 0:02:47.2]} 12. e4 {[%clk 0:02:52.4]} 12... dxe4 {[%clk
0:02:44.7]} 13. dxe4 {[%clk 0:02:53.3]} 13... Nxe4 {[%clk 0:02:36.4]} 14. Bxg7
{[%clk 0:02:38.3]} 14... Rg8 {[%clk 0:02:36.6]} 15. Nxe4 {[%clk 0:02:34.6]}
15... Bxe4 {[%clk 0:02:33.2]} 16. Bxh6 {[%clk 0:02:35.2]} 16... Nc6 {[%clk
0:02:29.6]} 17. Be3 {[%clk 0:02:20.8]} 17... Qc7 {[%clk 0:02:28.4]} 18. Qe2
{[%clk 0:02:04.8]} 18... O-O-O {[%clk 0:02:21.4]} 19. O-O {[%clk 0:02:04.6]}
19... f5 {[%clk 0:02:12.4]} 20. Ng5 {[%clk 0:01:56.4]} 20... Bxg2 {[%clk
0:02:04.8]} 21. Kxg2 {[%clk 0:01:57.3]} 21... Qe7 {[%clk 0:01:54.9]} 22. f4
{[%clk 0:01:51.8]} 22... e5 {[%clk 0:01:50.9]} 23. Rae1 {[%clk 0:01:12.9]} 23...
Rde8 {[%clk 0:01:46.3]} 24. Qd3 {[%clk 0:01:09.4]} 24... e4 {[%clk 0:01:38.2]}
25. Qd5 {[%clk 0:01:09.7]} 25... Rgf8 {[%clk 0:01:36.4]} 26. h6 {[%clk
0:01:07.8]} 26... Nb4 {[%clk 0:01:36.6]} 27. Qc4 {[%clk 0:01:05.7]} 27... Rh8
{[%clk 0:01:17.4]} 28. Rh1 {[%clk 0:01:05.1]} 28... Kb8 {[%clk 0:01:13]} 29. h7
{[%clk 0:01:04.3]} 29... Rc8 {[%clk 0:00:49.6]} 30. Rd1 {[%clk 0:01:04.4]} 30...
Nc6 {[%clk 0:00:32.8]} 31. Qf7 {[%clk 0:01:00.8]} 31... Nd4 {[%clk 0:00:19.3]}
32. Qxe7 {[%clk 0:01:00.6]} 32... Bxe7 {[%clk 0:00:19.2]} 33. Nf7 {[%clk
0:01:01.5]} 33... Rhf8 {[%clk 0:00:17.6]} 34. h8=Q {[%clk 0:00:57.1]} 34... Rxf7
{[%clk 0:00:18.1]} 35. Qe5+ {[%clk 0:00:56.1]} 35... Ka7 {[%clk 0:00:16.7]} 36.
c3 {[%clk 0:00:51.7]} 36... Bf6 {[%clk 0:00:10.7]} 37. Qd5 {[%clk 0:00:47.8]}
1-0

[Event "Early-Titled-Tuesday-Blitz-March-12-2024"]
[Site "Chess.com"]
[Date "2024.03.12"]
[Round "11"]
[White "jumpingknight20"]
[Black "Bilan_Danila"]
[Result "1-0"]
[WhiteElo "2685"]
[BlackElo "2561"]
[TimeControl "180+1"]
[EndTime "10:03:07 PDT"]
[Termination "jumpingknight20 won on time"]

1. Nf3 {[%clk 0:03:00.9]} 1... d5 {[%clk 0:02:57.4]} 2. b3 {[%clk 0:03:00.9]}
2... Nf6 {[%clk 0:02:57.6]} 3. Bb2 {[%clk 0:03:01.2]} 3... c5 {[%clk 0:02:58.3]}
4. e3 {[%clk 0:03:01.3]} 4... Nc6 {[%clk 0:02:59.1]} 5. Bb5 {[%clk 0:03:01.5]}
5... Qb6 {[%clk 0:02:59.8]} 6. Bxc6+ {[%clk 0:02:52.1]} 6... Qxc6 {[%clk
0:02:58]} 7. Ne5 {[%clk 0:02:51.4]} 7... Qc7 {[%clk 0:02:57.7]} 8. d4 {[%clk
0:02:49.7]} 8... g6 {[%clk 0:02:57.7]} 9. O-O {[%clk 0:02:48.2]} 9... Bg7 {[%clk
0:02:57.9]} 10. Nd2 {[%clk 0:02:47.9]} 10... O-O {[%clk 0:02:57.9]} 11. Rc1
{[%clk 0:02:44.4]} 11... cxd4 {[%clk 0:02:49.5]} 12. exd4 {[%clk 0:02:45.3]}
12... Bf5 {[%clk 0:02:48.2]} 13. c4 {[%clk 0:02:41]} 13... dxc4 {[%clk
0:02:25.8]} 14. Ndxc4 {[%clk 0:02:35]} 14... Nd5 {[%clk 0:01:35.6]} 15. Qf3
{[%clk 0:02:21.2]} 15... Qd8 {[%clk 0:01:19.9]} 16. Rfe1 {[%clk 0:02:16.8]}
16... Rc8 {[%clk 0:01:04.6]} 17. h3 {[%clk 0:02:13]} 17... Bh6 {[%clk
0:00:57.4]} 18. Rcd1 {[%clk 0:01:59.7]} 18... b5 {[%clk 0:00:48.4]} 19. Ne3
{[%clk 0:01:56.2]} 19... Nxe3 {[%clk 0:00:45.1]} 20. fxe3 {[%clk 0:01:57.1]}
20... Rc2 {[%clk 0:00:34.4]} 21. e4 {[%clk 0:01:40.7]} 21... Rxb2 {[%clk
0:00:26.8]} 22. exf5 {[%clk 0:01:39]} 22... Rxa2 {[%clk 0:00:22.7]} 23. Nc6
{[%clk 0:01:34.5]} 23... Qd6 {[%clk 0:00:17.6]} 24. Nxe7+ {[%clk 0:01:33.7]}
24... Kh8 {[%clk 0:00:17.5]} 25. Nc6 {[%clk 0:01:12.7]} 25... Bg7 {[%clk
0:00:16.7]} 26. Ne5 {[%clk 0:01:09.3]} 26... Kg8 {[%clk 0:00:11.8]} 27. Kh1
{[%clk 0:01:06.4]} 27... a5 {[%clk 0:00:05.5]} 28. Ng4 {[%clk 0:00:48.3]} 28...
gxf5 {[%clk 0:00:04.3]} 29. Qxf5 {[%clk 0:00:48.2]} 29... Qg6 {[%clk 0:00:05.2]}
30. Qxb5 {[%clk 0:00:35.9]} 30... h5 {[%clk 0:00:05.4]} 31. Ne3 {[%clk
0:00:36.6]} 31... Re8 {[%clk 0:00:05.4]} 32. Qxe8+ {[%clk 0:00:36.2]} 1-0

[Event "Early-Titled-Tuesday-Blitz-March-12-2024"]
[Site "Chess.com"]
[Date "2024.03.12"]
[Round "11"]
[White "GothamChess"]
[Black "ActorXu"]
[Result "0-1"]
[WhiteElo "2687"]
[BlackElo "2860"]
[TimeControl "180+1"]
[EndTime "10:03:19 PDT"]
[Termination "ActorXu won by resignation"]

1. e4 {[%clk 0:02:59.8]} 1... c5 {[%clk 0:02:59.7]} 2. a3 {[%clk 0:02:58.7]}
2... Nc6 {[%clk 0:02:51.3]} 3. b4 {[%clk 0:02:58.3]} 3... cxb4 {[%clk
0:02:47.9]} 4. axb4 {[%clk 0:02:58.5]} 4... Nxb4 {[%clk 0:02:48.6]} 5. c3 {[%clk
0:02:58.9]} 5... Nc6 {[%clk 0:02:48.8]} 6. d4 {[%clk 0:02:59.7]} 6... e6 {[%clk
0:02:45.9]} 7. d5 {[%clk 0:02:59.4]} 7... Ne5 {[%clk 0:02:44.2]} 8. f4 {[%clk
0:02:58.1]} 8... Ng6 {[%clk 0:02:44.5]} 9. d6 {[%clk 0:02:55.8]} 9... e5 {[%clk
0:02:36.4]} 10. Nf3 {[%clk 0:02:51.2]} 10... Nxf4 {[%clk 0:02:18.7]} 11. Bxf4
{[%clk 0:02:41.9]} 11... exf4 {[%clk 0:02:16.2]} 12. e5 {[%clk 0:02:35.6]} 12...
g5 {[%clk 0:02:10.4]} 13. Bc4 {[%clk 0:02:33.3]} 13... Nh6 {[%clk 0:02:06.6]}
14. h4 {[%clk 0:01:40.2]} 14... g4 {[%clk 0:01:54.3]} 15. Ng5 {[%clk 0:01:34.9]}
15... Qb6 {[%clk 0:01:47]} 16. Qd4 {[%clk 0:01:14.4]} 16... Qxd4 {[%clk
0:01:41.3]} 17. cxd4 {[%clk 0:01:15.3]} 17... f6 {[%clk 0:01:37.1]} 18. exf6
{[%clk 0:01:00.4]} 18... Bxd6 {[%clk 0:01:33]} 19. Nc3 {[%clk 0:00:50.9]} 19...
Nf5 {[%clk 0:01:24.1]} 20. Bf7+ {[%clk 0:00:36.3]} 20... Kd8 {[%clk 0:01:19.8]}
21. Bh5 {[%clk 0:00:32.9]} 21... Rf8 {[%clk 0:01:12]} 22. Nf7+ {[%clk
0:00:31.1]} 22... Rxf7 {[%clk 0:01:06.4]} 23. Bxf7 {[%clk 0:00:31]} 23... Bb4
{[%clk 0:01:04.2]} 24. Kd2 {[%clk 0:00:27.9]} 24... a5 {[%clk 0:00:55.6]} 25.
Rhe1 {[%clk 0:00:25.9]} 25... Ra6 {[%clk 0:00:52.3]} 26. Re8+ {[%clk 0:00:22.6]}
26... Kc7 {[%clk 0:00:52.1]} 27. Kd3 {[%clk 0:00:12.6]} 27... Bxc3 {[%clk
0:00:52.2]} 28. Rc1 {[%clk 0:00:13.2]} 28... Rxf6 {[%clk 0:00:40.9]} 29. Rxc3+
{[%clk 0:00:13.6]} 29... Rc6 {[%clk 0:00:39.7]} 30. Bg8 {[%clk 0:00:06]} 30...
Rxc3+ {[%clk 0:00:29.9]} 31. Kxc3 {[%clk 0:00:06.3]} 31... Nxh4 {[%clk
0:00:30.6]} 32. Bxh7 {[%clk 0:00:03.3]} 32... Nxg2 {[%clk 0:00:30.8]} 33. Be4
{[%clk 0:00:02.8]} 33... f3 {[%clk 0:00:29.6]} 34. Rg8 {[%clk 0:00:01.9]} 34...
Ne3 {[%clk 0:00:28.3]} 35. Kd3 {[%clk 0:00:02]} 35... f2 {[%clk 0:00:27.7]} 36.
Bg2 {[%clk 0:00:01.5]} 0-1

[Event "Early-Titled-Tuesday-Blitz-March-12-2024"]
[Site "Chess.com"]
[Date "2024.03.12"]
[Round "11"]
[White "Felix-Rose"]
[Black "emeli_chess"]
[Result "0-1"]
[WhiteElo "2253"]
[BlackElo "2380"]
[TimeControl "180+1"]
[EndTime "10:03:21 PDT"]
[Termination "emeli_chess won by resignation"]

1. d4 {[%clk 0:02:54.1]} 1... e5 {[%clk 0:03:00.9]} 2. dxe5 {[%clk 0:02:53.7]}
2... d6 {[%clk 0:02:59.7]} 3. e4 {[%clk 0:02:46.6]} 3... dxe5 {[%clk 0:02:54.9]}
4. Qxd8+ {[%clk 0:02:44]} 4... Kxd8 {[%clk 0:02:55]} 5. Bc4 {[%clk 0:02:44.2]}
5... Ke8 {[%clk 0:02:53]} 6. Nc3 {[%clk 0:02:43.1]} 6... Nf6 {[%clk 0:02:52]} 7.
Bg5 {[%clk 0:02:39.1]} 7... c6 {[%clk 0:02:51.3]} 8. O-O-O {[%clk 0:02:37.6]}
8... Be6 {[%clk 0:02:50.2]} 9. Bxe6 {[%clk 0:02:36.8]} 9... fxe6 {[%clk
0:02:50.3]} 10. f3 {[%clk 0:02:36.7]} 10... Nbd7 {[%clk 0:02:46.2]} 11. Nge2
{[%clk 0:02:36.8]} 11... h6 {[%clk 0:02:45.2]} 12. Be3 {[%clk 0:02:37]} 12...
Bc5 {[%clk 0:02:43.9]} 13. Bxc5 {[%clk 0:02:36.2]} 13... Nxc5 {[%clk 0:02:43.6]}
14. Rd2 {[%clk 0:02:23.8]} 14... Rd8 {[%clk 0:02:42.6]} 15. Rhd1 {[%clk
0:02:24.1]} 15... Rxd2 {[%clk 0:02:42.3]} 16. Rxd2 {[%clk 0:02:25]} 16... Ke7
{[%clk 0:02:42.6]} 17. b4 {[%clk 0:02:20]} 17... Ncd7 {[%clk 0:02:42.2]} 18. Kb2
{[%clk 0:02:12.3]} 18... b5 {[%clk 0:02:31.9]} 19. a4 {[%clk 0:02:11.8]} 19...
Nb6 {[%clk 0:02:31.7]} 20. Kb3 {[%clk 0:02:01]} 20... Nc4 {[%clk 0:02:30.2]} 21.
Rd1 {[%clk 0:01:57.5]} 21... a6 {[%clk 0:02:27.9]} 22. axb5 {[%clk 0:01:51.4]}
22... axb5 {[%clk 0:02:21.7]} 23. Ra1 {[%clk 0:01:51.7]} 23... Rd8 {[%clk
0:02:03.3]} 24. Ra6 {[%clk 0:01:45.6]} 24... Rd6 {[%clk 0:01:54.6]} 25. Ra7+
{[%clk 0:01:42.7]} 25... Nd7 {[%clk 0:01:54]} 26. Ra8 {[%clk 0:01:34.5]} 26...
Rd2 {[%clk 0:01:52.4]} 27. Rc8 {[%clk 0:01:22.6]} 27... Kd6 {[%clk 0:01:39.9]}
28. Rg8 {[%clk 0:01:19.3]} 28... Ne3 {[%clk 0:01:32.9]} 29. Rxg7 {[%clk
0:01:16.7]} 29... Nb6 {[%clk 0:01:27.6]} 30. f4 {[%clk 0:00:38.5]} 30... Nbc4
{[%clk 0:01:24.9]} 31. fxe5+ {[%clk 0:00:32.8]} 31... Kxe5 {[%clk 0:01:25.2]}
32. g3 {[%clk 0:00:22.2]} 32... Rxc2 {[%clk 0:01:23.5]} 33. Nd1 {[%clk
0:00:06.6]} 33... Rxe2 {[%clk 0:01:21.1]} 34. Nxe3 {[%clk 0:00:07.1]} 34...
Rxe3+ {[%clk 0:01:20.9]} 35. Kc2 {[%clk 0:00:07.4]} 35... Rxe4 {[%clk
0:01:13.7]} 36. Rg6 {[%clk 0:00:07.2]} 36... Kd4 {[%clk 0:01:12.1]} 37. Rxh6
{[%clk 0:00:07.5]} 37... Re2+ {[%clk 0:01:12.3]} 38. Kd1 {[%clk 0:00:07.9]}
38... Kd3 {[%clk 0:01:07]} 39. Rh8 {[%clk 0:00:06.1]} 39... Ne3+ {[%clk
0:01:03.6]} 40. Kc1 {[%clk 0:00:06.1]} 40... Kc3 {[%clk 0:01:03.8]} 41. Kb1
{[%clk 0:00:04.4]} 41... Re1+ {[%clk 0:01:02.8]} 42. Ka2 {[%clk 0:00:04.7]}
42... Nc2 {[%clk 0:01:01.3]} 43. Rc8 {[%clk 0:00:02.2]} 0-1

[Event "Early-Titled-Tuesday-Blitz-March-12-2024"]
[Site "Chess.com"]
[Date "2024.03.12"]
[Round "11"]
[White "KuzubovYuriy"]
[Black "CSB7"]
[Result "1/2-1/2"]
[WhiteElo "2906"]
[BlackElo "2778"]
[TimeControl "180+1"]
[EndTime "10:03:22 PDT"]
[Termination "Game drawn by repetition"]

1. d4 {[%clk 0:03:00.9]} 1... Nf6 {[%clk 0:02:59.1]} 2. c4 {[%clk 0:03:01.6]}
2... a6 {[%clk 0:02:59.2]} 3. Nc3 {[%clk 0:02:59.9]} 3... b5 {[%clk 0:02:59.3]}
4. cxb5 {[%clk 0:03:00]} 4... axb5 {[%clk 0:03:00.2]} 5. Nxb5 {[%clk 0:03:00.4]}
5... e5 {[%clk 0:03:00.7]} 6. dxe5 {[%clk 0:02:57.8]} 6... Ne4 {[%clk
0:03:01.1]} 7. Nc3 {[%clk 0:02:48.6]} 7... Bb4 {[%clk 0:03:00.9]} 8. Qc2 {[%clk
0:02:41.3]} 8... d5 {[%clk 0:02:49.8]} 9. e3 {[%clk 0:02:33]} 9... Bf5 {[%clk
0:02:04.5]} 10. Bd3 {[%clk 0:02:32.4]} 10... Qg5 {[%clk 0:02:04.8]} 11. Kf1
{[%clk 0:02:20.6]} 11... Bxc3 {[%clk 0:01:48.6]} 12. bxc3 {[%clk 0:02:20.6]}
12... Qg6 {[%clk 0:01:49.1]} 13. Qb2 {[%clk 0:01:39.5]} 13... Nc6 {[%clk
0:01:22.9]} 14. Nf3 {[%clk 0:01:18]} 14... O-O {[%clk 0:01:23]} 15. Nh4 {[%clk
0:01:15.8]} 15... Qh5 {[%clk 0:01:22.4]} 16. Nf3 {[%clk 0:01:10.6]} 16... Ng3+
{[%clk 0:01:07.2]} 17. fxg3 {[%clk 0:01:01.6]} 17... Bxd3+ {[%clk 0:01:06.7]}
18. Kg1 {[%clk 0:01:01.8]} 18... Rfb8 {[%clk 0:00:56.5]} 19. Qf2 {[%clk
0:00:58.7]} 19... Be4 {[%clk 0:00:47.3]} 20. h3 {[%clk 0:00:52]} 20... Nxe5
{[%clk 0:00:45.4]} 21. g4 {[%clk 0:00:39.5]} 21... Nxf3+ {[%clk 0:00:45.4]} 22.
gxf3 {[%clk 0:00:38.7]} 22... Qe5 {[%clk 0:00:46]} 23. Bd2 {[%clk 0:00:31.1]}
23... Bd3 {[%clk 0:00:43.4]} 24. Be1 {[%clk 0:00:25.6]} 24... Ra6 {[%clk
0:00:37]} 25. Kg2 {[%clk 0:00:20.6]} 25... h6 {[%clk 0:00:32]} 26. Rd1 {[%clk
0:00:18.1]} 26... Bc4 {[%clk 0:00:31.2]} 27. Rd2 {[%clk 0:00:18.5]} 27... Rba8
{[%clk 0:00:31.2]} 28. Qg3 {[%clk 0:00:14.6]} 28... Qxe3 {[%clk 0:00:22.1]} 29.
Qxc7 {[%clk 0:00:13.9]} 29... Rxa2 {[%clk 0:00:21.8]} 30. Rxa2 {[%clk 0:00:14]}
30... Rxa2+ {[%clk 0:00:22.6]} 31. Kg3 {[%clk 0:00:14.6]} 31... Qe2 {[%clk
0:00:10.7]} 32. Qc8+ {[%clk 0:00:13.5]} 32... Kh7 {[%clk 0:00:11.1]} 33. Qf5+
{[%clk 0:00:14]} 33... Kg8 {[%clk 0:00:11.8]} 34. Qc8+ {[%clk 0:00:13.4]} 34...
Kh7 {[%clk 0:00:12.4]} 35. Qf5+ {[%clk 0:00:07.9]} 35... Kg8 {[%clk 0:00:13]}
36. Qc8+ {[%clk 0:00:08.4]} 1/2-1/2

[Event "Early-Titled-Tuesday-Blitz-March-12-2024"]
[Site "Chess.com"]
[Date "2024.03.12"]
[Round "11"]
[White "profedechess93"]
[Black "Boorchess"]
[Result "0-1"]
[WhiteElo "2614"]
[BlackElo "2549"]
[TimeControl "180+1"]
[EndTime "10:03:24 PDT"]
[Termination "Boorchess won on time"]

1. e4 {[%clk 0:03:00.9]} 1... e5 {[%clk 0:02:59.8]} 2. Nf3 {[%clk 0:03:00.1]}
2... Nf6 {[%clk 0:02:59.8]} 3. Nxe5 {[%clk 0:02:59.1]} 3... d6 {[%clk 0:03:00]}
4. Nf3 {[%clk 0:02:59.7]} 4... Nxe4 {[%clk 0:02:59.7]} 5. Nc3 {[%clk 0:03:00.6]}
5... Nf6 {[%clk 0:02:59.3]} 6. d4 {[%clk 0:03:00.5]} 6... g6 {[%clk 0:02:59.5]}
7. Bg5 {[%clk 0:02:59.4]} 7... Bg7 {[%clk 0:02:59.6]} 8. Qd2 {[%clk 0:03:00]}
8... h6 {[%clk 0:02:58.7]} 9. Bf4 {[%clk 0:02:58.6]} 9... Nc6 {[%clk 0:02:58]}
10. Bb5 {[%clk 0:02:57.8]} 10... a6 {[%clk 0:02:57.5]} 11. Ba4 {[%clk
0:02:56.7]} 11... Kf8 {[%clk 0:02:55.7]} 12. O-O-O {[%clk 0:02:26.1]} 12... b5
{[%clk 0:02:44.4]} 13. Bb3 {[%clk 0:02:20.5]} 13... Na5 {[%clk 0:02:42.7]} 14.
d5 {[%clk 0:02:07.2]} 14... Nxb3+ {[%clk 0:02:37.8]} 15. axb3 {[%clk 0:02:04.4]}
15... Bb7 {[%clk 0:02:33.8]} 16. Rhe1 {[%clk 0:01:24.1]} 16... b4 {[%clk
0:02:29.1]} 17. Ne4 {[%clk 0:01:24.1]} 17... Nxd5 {[%clk 0:02:23]} 18. Bg3
{[%clk 0:01:24.2]} 18... a5 {[%clk 0:02:17.7]} 19. Qe2 {[%clk 0:01:00.2]} 19...
Kg8 {[%clk 0:01:26.2]} 20. Qb5 {[%clk 0:00:58.2]} 20... Qc8 {[%clk 0:01:05.6]}
21. Rxd5 {[%clk 0:00:34.9]} 21... c6 {[%clk 0:01:04.6]} 22. Nxd6 {[%clk
0:00:35.5]} 22... cxb5 {[%clk 0:01:01.6]} 23. Nxc8 {[%clk 0:00:35.6]} 23... Bxd5
{[%clk 0:00:45]} 24. Ne7+ {[%clk 0:00:35.9]} 24... Kh7 {[%clk 0:00:45.1]} 25.
Nxd5 {[%clk 0:00:36.6]} 25... a4 {[%clk 0:00:43.2]} 26. bxa4 {[%clk 0:00:21.7]}
26... Rxa4 {[%clk 0:00:40.7]} 27. Re7 {[%clk 0:00:21]} 27... Rd8 {[%clk
0:00:33.2]} 28. Rxf7 {[%clk 0:00:15.6]} 28... Rxd5 {[%clk 0:00:31.6]} 29. c3
{[%clk 0:00:12.7]} 29... b3 {[%clk 0:00:31.1]} 30. Nd2 {[%clk 0:00:09]} 30...
Ra1+ {[%clk 0:00:29.6]} 31. Nb1 {[%clk 0:00:09.6]} 31... Kg8 {[%clk 0:00:29.4]}
32. Re7 {[%clk 0:00:08.2]} 32... Kf8 {[%clk 0:00:28.2]} 33. Rb7 {[%clk
0:00:06.8]} 33... Be5 {[%clk 0:00:27.6]} 34. f4 {[%clk 0:00:06.1]} 34... Bd6
{[%clk 0:00:23.2]} 35. h3 {[%clk 0:00:05.8]} 35... Bc5 {[%clk 0:00:21.9]} 0-1